[Event "Titled Tuesday Blitz August 22 Early 2023"]
[White "Horobetz, Graham"]
[Black "Mrudul Dehankar"]
[WhiteFideId "2047322"]
[BlackFideId "25096990"]
[WhiteElo "2605"]
[BlackElo "2439"]
[Result "1-0"]
[Round "3"]
[TimeControl "180+1"]
[Date "2023.08.22"]
[WhiteClock "0:00:05"]
[BlackClock "0:00:00"]
[Board "122"]

1. e4 {[%clk 0:03:00]}  c6 {[%clk 0:02:58]} 2. d4 {[%clk 0:03:00]}  d5 {[%clk 0:02:56]} 3. Nc3 {[%clk 0:03:01]}  dxe4 {[%clk 0:02:55]} 4. Nxe4 {[%clk 0:03:01]}  Nf6 {[%clk 0:02:55]} 5. Nxf6+ {[%clk 0:03:01]}  exf6 {[%clk 0:02:55]} 6. c3 {[%clk 0:03:02]}  Bd6 {[%clk 0:02:54]} 7. Bd3 {[%clk 0:03:03]}  O-O {[%clk 0:02:54]} 8. Qc2 {[%clk 0:03:04]}  Re8+ {[%clk 0:02:54]} 9. Ne2 {[%clk 0:03:05]}  h5 {[%clk 0:02:54]} 10. O-O {[%clk 0:03:05]}  h4 {[%clk 0:02:55]} 11. h3 {[%clk 0:03:06]}  Nd7 {[%clk 0:02:55]} 12. Bd2 {[%clk 0:03:06]}  Nf8 {[%clk 0:02:54]} 13. Rae1 {[%clk 0:03:07]}  Bc7 {[%clk 0:02:51]} 14. Qc1 {[%clk 0:02:48]}  Ng6 {[%clk 0:01:55]} 15. Nf4 {[%clk 0:02:37]}  Nxf4 {[%clk 0:01:21]} 16. Bxf4 {[%clk 0:02:38]}  Be6 {[%clk 0:01:21]} 17. a3 {[%clk 0:02:17]}  Bd6 {[%clk 0:01:09]} 18. Bxd6 {[%clk 0:02:13]}  Qxd6 {[%clk 0:01:09]} 19. Re4 {[%clk 0:02:13]}  g5 {[%clk 0:00:33]} 20. f4 {[%clk 0:02:00]}  Bd5 {[%clk 0:00:26]} 21. Rxe8+ {[%clk 0:01:57]}  Rxe8 {[%clk 0:00:27]} 22. Qd2 {[%clk 0:01:48]}  Qe7 {[%clk 0:00:16]} 23. Kf2 {[%clk 0:01:30]}  Qd6 {[%clk 0:00:11]} 24. Kg1 {[%clk 0:01:25]}  Qe7 {[%clk 0:00:11]} 25. c4 {[%clk 0:01:13]}  Qe3+ {[%clk 0:00:11]} 26. Qxe3 {[%clk 0:01:14]}  Rxe3 {[%clk 0:00:11]} 27. Rd1 {[%clk 0:01:14]}  Be6 {[%clk 0:00:10]} 28. Kf2 {[%clk 0:01:12]}  Rg3 {[%clk 0:00:10]} 29. f5 {[%clk 0:01:11]}  Bd7 {[%clk 0:00:10]} 30. Be4 {[%clk 0:01:06]}  Kf8 {[%clk 0:00:10]} 31. d5 {[%clk 0:01:01]}  c5 {[%clk 0:00:10]} 32. d6 {[%clk 0:00:56]}  g4 {[%clk 0:00:09]} 33. hxg4 {[%clk 0:00:50]}  Rxg4 {[%clk 0:00:09]} 34. Bxb7 {[%clk 0:00:50]}  Rxc4 {[%clk 0:00:10]} 35. Rd2 {[%clk 0:00:48]}  Rf4+ {[%clk 0:00:10]} 36. Ke3 {[%clk 0:00:46]}  Rxf5 {[%clk 0:00:10]} 37. Be4 {[%clk 0:00:46]}  Re5 {[%clk 0:00:11]} 38. Kf4 {[%clk 0:00:47]}  Ke8 {[%clk 0:00:09]} 39. Rd5 {[%clk 0:00:42]}  Rxd5 {[%clk 0:00:07]} 40. Bxd5 {[%clk 0:00:43]}  Be6 {[%clk 0:00:08]} 41. Bc6+ {[%clk 0:00:41]}  Kd8 {[%clk 0:00:08]} 42. b4 {[%clk 0:00:39]}  cxb4 {[%clk 0:00:07]} 43. axb4 {[%clk 0:00:40]}  Bd7 {[%clk 0:00:07]} 44. Bf3 {[%clk 0:00:33]}  Be6 {[%clk 0:00:07]} 45. Bc6 {[%clk 0:00:30]}  Bd7 {[%clk 0:00:07]} 46. b5 {[%clk 0:00:26]}  Be6 {[%clk 0:00:06]} 47. Ke3 {[%clk 0:00:24]}  Bd7 {[%clk 0:00:05]} 48. Kd4 {[%clk 0:00:25]}  Be6 {[%clk 0:00:05]} 49. Kc5 {[%clk 0:00:25]}  h3 {[%clk 0:00:05]} 50. gxh3 {[%clk 0:00:24]}  Bxh3 {[%clk 0:00:06]} 51. Kb4 {[%clk 0:00:17]}  Bc8 {[%clk 0:00:06]} 52. Kc5 {[%clk 0:00:16]}  f5 {[%clk 0:00:07]} 53. Bd5 {[%clk 0:00:16]}  f6 {[%clk 0:00:06]} 54. Kc6 {[%clk 0:00:13]}  Bd7+ {[%clk 0:00:06]} 55. Kc5 {[%clk 0:00:13]}  Bc8 {[%clk 0:00:06]} 56. Bf3 {[%clk 0:00:13]}  Bd7 {[%clk 0:00:06]} 57. Be2 {[%clk 0:00:13]}  f4 {[%clk 0:00:06]} 58. Kd5 {[%clk 0:00:13]}  Bf5 {[%clk 0:00:06]} 59. Kc6 {[%clk 0:00:11]}  Bd7+ {[%clk 0:00:05]} 60. Kb7 {[%clk 0:00:11]}  f3 {[%clk 0:00:06]} 61. Bf1 {[%clk 0:00:09]}  f2 {[%clk 0:00:06]} 62. Kxa7 {[%clk 0:00:09]}  Bc8 {[%clk 0:00:03]} 63. b6 {[%clk 0:00:09]}  Kd7 {[%clk 0:00:03]} 64. Kb8 {[%clk 0:00:04]}  Kxd6 {[%clk 0:00:01]} 65. Kxc8 {[%clk 0:00:03]}  Kc6 {[%clk 0:00:01]} 66. b7 {[%clk 0:00:04]}  Kc5 {[%clk 0:00:00]} 67. b8=Q {[%clk 0:00:05]} 1-0


[Site "https://www.chess.com"]

[Event "Titled Tuesday Blitz August 22 Early 2023"]
[White "Boarish_Male"]
[Black "Rangel, Daniel"]
[BlackFideId "2124475"]
[WhiteElo "2603"]
[BlackElo "2433"]
[Result "1/2-1/2"]
[Round "3"]
[TimeControl "180+1"]
[Date "2023.08.22"]
[WhiteClock "0:00:05"]
[BlackClock "0:00:05"]
[Board "124"]

1. e4 {[%clk 0:03:00]}  c5 {[%clk 0:02:59]} 2. Nf3 {[%clk 0:03:00]}  d6 {[%clk 0:02:59]} 3. d4 {[%clk 0:03:00]}  cxd4 {[%clk 0:03:00]} 4. Nxd4 {[%clk 0:03:00]}  Nf6 {[%clk 0:03:01]} 5. Nc3 {[%clk 0:03:00]}  a6 {[%clk 0:03:00]} 6. Bc4 {[%clk 0:03:00]}  e6 {[%clk 0:03:00]} 7. Bb3 {[%clk 0:03:01]}  Be7 {[%clk 0:03:00]} 8. O-O {[%clk 0:03:01]}  O-O {[%clk 0:02:59]} 9. f4 {[%clk 0:02:52]}  b5 {[%clk 0:02:53]} 10. f5 {[%clk 0:02:46]}  e5 {[%clk 0:02:47]} 11. Nf3 {[%clk 0:02:45]}  Bb7 {[%clk 0:02:46]} 12. Re1 {[%clk 0:02:37]}  Nbd7 {[%clk 0:02:42]} 13. Nd5 {[%clk 0:02:32]}  Nb6 {[%clk 0:02:20]} 14. Nxf6+ {[%clk 0:02:05]}  Bxf6 {[%clk 0:02:19]} 15. Be3 {[%clk 0:02:03]}  Bxe4 {[%clk 0:02:02]} 16. Kh1 {[%clk 0:01:58]}  Bxf5 {[%clk 0:01:57]} 17. Qe2 {[%clk 0:01:22]}  Rc8 {[%clk 0:01:42]} 18. Rad1 {[%clk 0:01:22]}  Nc4 {[%clk 0:01:37]} 19. Bc1 {[%clk 0:01:15]}  Qe7 {[%clk 0:01:27]} 20. a4 {[%clk 0:01:11]}  Bg6 {[%clk 0:01:16]} 21. c3 {[%clk 0:01:05]}  Rfd8 {[%clk 0:01:14]} 22. Rd5 {[%clk 0:00:50]}  Nb6 {[%clk 0:01:09]} 23. Rdd1 {[%clk 0:00:46]}  Nxa4 {[%clk 0:01:05]} 24. c4 {[%clk 0:00:42]}  Nc5 {[%clk 0:01:03]} 25. Ba2 {[%clk 0:00:40]}  b4 {[%clk 0:01:02]} 26. Nd2 {[%clk 0:00:36]}  Nd3 {[%clk 0:00:50]} 27. Rf1 {[%clk 0:00:34]}  Nxc1 {[%clk 0:00:49]} 28. Rxc1 {[%clk 0:00:35]}  h6 {[%clk 0:00:47]} 29. Ne4 {[%clk 0:00:28]}  Bxe4 {[%clk 0:00:39]} 30. Qxe4 {[%clk 0:00:29]}  a5 {[%clk 0:00:39]} 31. Bb3 {[%clk 0:00:26]}  g6 {[%clk 0:00:39]} 32. c5 {[%clk 0:00:24]}  Rxc5 {[%clk 0:00:34]} 33. Qxg6+ {[%clk 0:00:20]}  Kf8 {[%clk 0:00:29]} 34. Qxh6+ {[%clk 0:00:12]}  Bg7 {[%clk 0:00:27]} 35. Qh5 {[%clk 0:00:10]}  Rxc1 {[%clk 0:00:20]} 36. Rxc1 {[%clk 0:00:11]}  d5 {[%clk 0:00:19]} 37. Rf1 {[%clk 0:00:10]}  e4 {[%clk 0:00:18]} 38. Bxd5 {[%clk 0:00:09]}  f6 {[%clk 0:00:14]} 39. Bb3 {[%clk 0:00:05]}  e3 {[%clk 0:00:14]} 40. Qh7 {[%clk 0:00:05]}  Ke8 {[%clk 0:00:09]} 41. Qg8+ {[%clk 0:00:04]}  Kd7 {[%clk 0:00:07]} 42. Rd1+ {[%clk 0:00:04]}  Kc7 {[%clk 0:00:07]} 43. Rxd8 {[%clk 0:00:04]}  Qxd8 {[%clk 0:00:06]} 44. Qxg7+ {[%clk 0:00:04]}  Kb6 {[%clk 0:00:05]} 45. Qg3 {[%clk 0:00:03]}  Qd2 {[%clk 0:00:04]} 46. Qf3 {[%clk 0:00:02]}  e2 {[%clk 0:00:04]} 47. Qf2+ {[%clk 0:00:02]}  Kc7 {[%clk 0:00:03]} 48. Qg3+ {[%clk 0:00:02]}  Kd8 {[%clk 0:00:03]} 49. Qg8+ {[%clk 0:00:02]}  Kc7 {[%clk 0:00:02]} 50. Qf7+ {[%clk 0:00:02]}  Kb8 {[%clk 0:00:02]} 51. Qf8+ {[%clk 0:00:02]}  Kc7 {[%clk 0:00:03]} 52. Qf7+ {[%clk 0:00:03]}  Kb8 {[%clk 0:00:03]} 53. Qf8+ {[%clk 0:00:04]}  Kc7 {[%clk 0:00:03]} 54. Qe7+ {[%clk 0:00:04]}  Kb8 {[%clk 0:00:04]} 55. Qe8+ {[%clk 0:00:05]}  Kc7 {[%clk 0:00:04]} 56. Qe7+ {[%clk 0:00:05]}  Kb8 {[%clk 0:00:04]} 57. Qe8+ {[%clk 0:00:05]}  Ka7 {[%clk 0:00:04]} 58. Qe7+ {[%clk 0:00:05]}  Kb8 {[%clk 0:00:05]} 1/2-1/2


[Site "https://www.chess.com"]

[Event "Titled Tuesday Blitz August 22 Early 2023"]
[White "Aevengho"]
[Black "Girsh, Daniel"]
[BlackFideId "30949190"]
[WhiteElo "2599"]
[BlackElo "2429"]
[Result "0-1"]
[Round "3"]
[TimeControl "180+1"]
[Date "2023.08.22"]
[WhiteClock "0:00:13"]
[BlackClock "0:00:58"]
[Board "128"]

1. e4 {[%clk 0:03:00]}  c5 {[%clk 0:03:00]} 2. Nc3 {[%clk 0:03:00]}  d6 {[%clk 0:03:00]} 3. Nf3 {[%clk 0:03:00]}  Nf6 {[%clk 0:02:59]} 4. Bc4 {[%clk 0:03:00]}  e6 {[%clk 0:02:59]} 5. O-O {[%clk 0:02:59]}  Be7 {[%clk 0:02:59]} 6. Re1 {[%clk 0:02:59]}  O-O {[%clk 0:02:59]} 7. d3 {[%clk 0:03:00]}  Nc6 {[%clk 0:02:58]} 8. h3 {[%clk 0:02:59]}  a6 {[%clk 0:02:58]} 9. a4 {[%clk 0:03:00]}  d5 {[%clk 0:02:51]} 10. Bb3 {[%clk 0:02:59]}  h6 {[%clk 0:02:51]} 11. Bf4 {[%clk 0:02:58]}  b6 {[%clk 0:02:36]} 12. exd5 {[%clk 0:02:57]}  exd5 {[%clk 0:02:35]} 13. Ne5 {[%clk 0:02:56]}  Nxe5 {[%clk 0:02:26]} 14. Bxe5 {[%clk 0:02:57]}  Be6 {[%clk 0:02:26]} 15. Qf3 {[%clk 0:02:54]}  c4 {[%clk 0:02:26]} 16. dxc4 {[%clk 0:02:53]}  dxc4 {[%clk 0:02:27]} 17. Ba2 {[%clk 0:02:47]}  Nd7 {[%clk 0:02:26]} 18. Bd4 {[%clk 0:02:36]}  Bf6 {[%clk 0:02:05]} 19. Rad1 {[%clk 0:02:33]}  Rc8 {[%clk 0:01:55]} 20. Ne4 {[%clk 0:02:25]}  Bxd4 {[%clk 0:01:54]} 21. Rxd4 {[%clk 0:02:26]}  Ne5 {[%clk 0:01:45]} 22. Qd1 {[%clk 0:02:25]}  Qc7 {[%clk 0:01:38]} 23. Nd6 {[%clk 0:02:23]}  Nc6 {[%clk 0:01:38]} 24. Rd2 {[%clk 0:02:05]}  c3 {[%clk 0:01:33]} 25. bxc3 {[%clk 0:00:54]}  Bxa2 {[%clk 0:01:32]} 26. Nxc8 {[%clk 0:00:54]}  Rxc8 {[%clk 0:01:31]} 27. Rd7 {[%clk 0:00:54]}  Qf4 {[%clk 0:01:30]} 28. Re3 {[%clk 0:00:47]}  Be6 {[%clk 0:01:19]} 29. Rb7 {[%clk 0:00:47]}  Rd8 {[%clk 0:01:15]} 30. Qf3 {[%clk 0:00:42]}  Qxf3 {[%clk 0:01:14]} 31. Rxf3 {[%clk 0:00:43]}  Ne5 {[%clk 0:01:13]} 32. Re3 {[%clk 0:00:38]}  Nc4 {[%clk 0:01:12]} 33. Rd3 {[%clk 0:00:38]}  Rc8 {[%clk 0:01:07]} 34. f3 {[%clk 0:00:34]}  a5 {[%clk 0:01:05]} 35. g4 {[%clk 0:00:31]}  Ne5 {[%clk 0:01:03]} 36. Re3 {[%clk 0:00:29]}  Nxf3+ {[%clk 0:01:01]} 37. Kf2 {[%clk 0:00:13]}  Nd2 {[%clk 0:00:58]} 0-1


[Site "https://www.chess.com"]

[Event "Titled Tuesday Blitz August 22 Early 2023"]
[White "Baghdasaryan, Vahe"]
[Black "Rosen, Eric"]
[WhiteFideId "13303139"]
[BlackFideId "2032562"]
[WhiteElo "2428"]
[BlackElo "2594"]
[Result "0-1"]
[Round "3"]
[TimeControl "180+1"]
[Date "2023.08.22"]
[WhiteClock "0:00:03"]
[BlackClock "0:00:06"]
[Board "129"]

1. e4 {[%clk 0:03:00]}  c5 {[%clk 0:02:59]} 2. c3 {[%clk 0:02:59]}  d5 {[%clk 0:02:59]} 3. exd5 {[%clk 0:02:58]}  Qxd5 {[%clk 0:03:00]} 4. d4 {[%clk 0:02:55]}  Nf6 {[%clk 0:03:00]} 5. Nf3 {[%clk 0:02:53]}  e6 {[%clk 0:03:00]} 6. Be3 {[%clk 0:02:34]}  cxd4 {[%clk 0:02:56]} 7. cxd4 {[%clk 0:02:31]}  Nc6 {[%clk 0:02:55]} 8. Nc3 {[%clk 0:02:30]}  Qd6 {[%clk 0:02:56]} 9. Bd3 {[%clk 0:02:24]}  Be7 {[%clk 0:02:56]} 10. O-O {[%clk 0:02:23]}  O-O {[%clk 0:02:56]} 11. a3 {[%clk 0:02:22]}  b6 {[%clk 0:02:54]} 12. Bc2 {[%clk 0:02:19]}  Bb7 {[%clk 0:02:54]} 13. Qd3 {[%clk 0:02:18]}  g6 {[%clk 0:02:48]} 14. Rad1 {[%clk 0:02:15]}  Rfd8 {[%clk 0:02:41]} 15. h4 {[%clk 0:02:04]}  Rac8 {[%clk 0:02:33]} 16. Rfe1 {[%clk 0:01:55]}  a6 {[%clk 0:02:23]} 17. Bb1 {[%clk 0:01:49]}  b5 {[%clk 0:02:23]} 18. Ne4 {[%clk 0:01:40]}  Nxe4 {[%clk 0:02:07]} 19. Qxe4 {[%clk 0:01:41]}  Na5 {[%clk 0:02:06]} 20. Qg4 {[%clk 0:01:38]}  h5 {[%clk 0:02:01]} 21. Qh3 {[%clk 0:01:27]}  Nc4 {[%clk 0:01:59]} 22. Bc1 {[%clk 0:01:09]}  Bxf3 {[%clk 0:01:06]} 23. Qxf3 {[%clk 0:00:30]}  Bxh4 {[%clk 0:01:06]} 24. g3 {[%clk 0:00:30]}  Be7 {[%clk 0:01:03]} 25. Bf4 {[%clk 0:00:20]}  Qd7 {[%clk 0:00:47]} 26. Bc1 {[%clk 0:00:16]}  Kg7 {[%clk 0:00:42]} 27. g4 {[%clk 0:00:16]}  hxg4 {[%clk 0:00:39]} 28. Qxg4 {[%clk 0:00:17]}  Rh8 {[%clk 0:00:37]} 29. d5 {[%clk 0:00:15]}  Rh4 {[%clk 0:00:20]} 30. Qg2 {[%clk 0:00:14]}  e5 {[%clk 0:00:14]} 31. b3 {[%clk 0:00:10]}  Nd6 {[%clk 0:00:09]} 32. f3 {[%clk 0:00:09]}  Bf6 {[%clk 0:00:07]} 33. Bb2 {[%clk 0:00:09]}  Rh5 {[%clk 0:00:06]} 34. Bd3 {[%clk 0:00:07]}  Rch8 {[%clk 0:00:04]} 35. f4 {[%clk 0:00:05]}  Qa7+ {[%clk 0:00:04]} 36. Kf1 {[%clk 0:00:05]}  Rh1+ {[%clk 0:00:04]} 37. Ke2 {[%clk 0:00:05]}  R1h2 {[%clk 0:00:04]} 38. fxe5 {[%clk 0:00:05]}  Rxg2+ {[%clk 0:00:05]} 39. Kf3 {[%clk 0:00:03]}  Qf2# {[%clk 0:00:06]} 0-1


[Site "https://www.chess.com"]

[Event "Titled Tuesday Blitz August 22 Early 2023"]
[White "Borgaonkar Akshay"]
[Black "Bueno, Alfeu Junior Varela"]
[WhiteFideId "25639110"]
[BlackFideId "2108879"]
[WhiteElo "2594"]
[BlackElo "2428"]
[Result "1-0"]
[Round "3"]
[TimeControl "180+1"]
[Date "2023.08.22"]
[WhiteClock "0:02:01"]
[BlackClock "0:00:02"]
[Board "130"]

1. Nf3 {[%clk 0:03:00]}  e6 {[%clk 0:02:58]} 2. b3 {[%clk 0:03:00]}  f5 {[%clk 0:02:58]} 3. Bb2 {[%clk 0:02:59]}  b6 {[%clk 0:02:59]} 4. g3 {[%clk 0:02:56]}  Bb7 {[%clk 0:02:59]} 5. Bg2 {[%clk 0:02:57]}  Nf6 {[%clk 0:03:00]} 6. O-O {[%clk 0:02:58]}  Be7 {[%clk 0:03:01]} 7. c4 {[%clk 0:02:58]}  O-O {[%clk 0:03:01]} 8. Nc3 {[%clk 0:02:59]}  Qe8 {[%clk 0:02:56]} 9. d3 {[%clk 0:02:55]}  Qh5 {[%clk 0:02:54]} 10. e3 {[%clk 0:02:55]}  Qh6 {[%clk 0:02:52]} 11. Nb5 {[%clk 0:02:48]}  Bd8 {[%clk 0:02:51]} 12. h3 {[%clk 0:02:42]}  d6 {[%clk 0:02:36]} 13. Nfd4 {[%clk 0:02:35]}  Bxg2 {[%clk 0:02:35]} 14. Kxg2 {[%clk 0:02:36]}  Re8 {[%clk 0:02:26]} 15. Qf3 {[%clk 0:02:35]}  d5 {[%clk 0:01:51]} 16. cxd5 {[%clk 0:02:32]}  Nxd5 {[%clk 0:01:29]} 17. Nxf5 {[%clk 0:02:31]}  Qg6 {[%clk 0:01:29]} 18. Nxg7 {[%clk 0:02:26]}  Rf8 {[%clk 0:01:26]} 19. Qe4 {[%clk 0:02:24]}  Bf6 {[%clk 0:01:16]} 20. Bxf6 {[%clk 0:02:20]}  Rxf6 {[%clk 0:01:09]} 21. Qxg6 {[%clk 0:02:12]}  Rxg6 {[%clk 0:00:53]} 22. Ne8 {[%clk 0:02:08]}  Na6 {[%clk 0:00:41]} 23. e4 {[%clk 0:02:08]}  Nf4+ {[%clk 0:00:20]} 24. Kf3 {[%clk 0:02:08]}  Nxh3 {[%clk 0:00:18]} 25. Nexc7 {[%clk 0:02:06]}  Rf8+ {[%clk 0:00:15]} 26. Ke3 {[%clk 0:02:06]}  Nxc7 {[%clk 0:00:10]} 27. Nxc7 {[%clk 0:02:07]}  Rgf6 {[%clk 0:00:06]} 28. f4 {[%clk 0:02:07]}  Rg6 {[%clk 0:00:07]} 29. Rf3 {[%clk 0:02:03]}  h5 {[%clk 0:00:05]} 30. Rh1 {[%clk 0:02:03]}  Rf7 {[%clk 0:00:02]} 31. Nb5 {[%clk 0:02:02]}  a6 {[%clk 0:00:02]} 32. Nc3 {[%clk 0:02:01]}  Rd7 {[%clk 0:00:02]} 33. Rxh3 {[%clk 0:02:01]} 1-0


[Site "https://www.chess.com"]

[Event "Titled Tuesday Blitz August 22 Early 2023"]
[White "Tomaszewski, Kacper"]
[Black "Ahmad, Khagan"]
[WhiteFideId "1127373"]
[BlackFideId "13431552"]
[WhiteElo "2426"]
[BlackElo "2594"]
[Result "0-1"]
[Round "3"]
[TimeControl "180+1"]
[Date "2023.08.22"]
[WhiteClock "0:00:21"]
[BlackClock "0:02:09"]
[Board "131"]

1. e4 {[%clk 0:03:00]}  c5 {[%clk 0:02:56]} 2. d4 {[%clk 0:03:01]}  cxd4 {[%clk 0:02:52]} 3. c3 {[%clk 0:03:01]}  dxc3 {[%clk 0:02:53]} 4. Nxc3 {[%clk 0:03:01]}  e6 {[%clk 0:02:53]} 5. Nf3 {[%clk 0:03:01]}  Bb4 {[%clk 0:02:52]} 6. Qd4 {[%clk 0:02:56]}  Bxc3+ {[%clk 0:02:48]} 7. bxc3 {[%clk 0:02:55]}  Nf6 {[%clk 0:02:47]} 8. Ba3 {[%clk 0:02:50]}  Nc6 {[%clk 0:02:46]} 9. Qe3 {[%clk 0:02:16]}  Qa5 {[%clk 0:02:42]} 10. Bd6 {[%clk 0:02:10]}  Nxe4 {[%clk 0:02:38]} 11. Qxe4 {[%clk 0:02:01]}  Qxc3+ {[%clk 0:02:36]} 12. Ke2 {[%clk 0:01:40]}  Qxa1 {[%clk 0:02:34]} 13. g3 {[%clk 0:01:37]}  Qxa2+ {[%clk 0:02:31]} 14. Nd2 {[%clk 0:01:36]}  f5 {[%clk 0:02:26]} 15. Qh4 {[%clk 0:01:31]}  Qd5 {[%clk 0:02:25]} 16. Nc4 {[%clk 0:01:15]}  Nd4+ {[%clk 0:02:19]} 17. Ke3 {[%clk 0:01:07]}  f4+ {[%clk 0:02:15]} 18. Qxf4 {[%clk 0:00:59]}  Nf5+ {[%clk 0:02:15]} 19. Ke2 {[%clk 0:00:54]}  Qxh1 {[%clk 0:02:12]} 20. Be5 {[%clk 0:00:21]}  O-O {[%clk 0:02:09]} 0-1


[Site "https://www.chess.com"]

[Event "Titled Tuesday Blitz August 22 Early 2023"]
[White "Dobrikov, Marco"]
[Black "Goldin, Roman"]
[WhiteFideId "12950378"]
[BlackFideId "2803860"]
[WhiteElo "2593"]
[BlackElo "2422"]
[Result "0-1"]
[Round "3"]
[TimeControl "180+1"]
[Date "2023.08.22"]
[WhiteClock "0:00:43"]
[BlackClock "0:00:08"]
[Board "132"]

1. c4 {[%clk 0:03:00]}  e5 {[%clk 0:02:59]} 2. Nc3 {[%clk 0:03:00]}  Nf6 {[%clk 0:02:59]} 3. Nf3 {[%clk 0:03:00]}  Nc6 {[%clk 0:02:59]} 4. g3 {[%clk 0:03:00]}  d5 {[%clk 0:02:59]} 5. cxd5 {[%clk 0:03:00]}  Nxd5 {[%clk 0:03:00]} 6. Bg2 {[%clk 0:03:01]}  Nb6 {[%clk 0:03:00]} 7. O-O {[%clk 0:03:01]}  Be7 {[%clk 0:03:01]} 8. e3 {[%clk 0:02:54]}  O-O {[%clk 0:02:59]} 9. d4 {[%clk 0:02:54]}  exd4 {[%clk 0:02:57]} 10. exd4 {[%clk 0:02:55]}  Nb4 {[%clk 0:02:55]} 11. Ne5 {[%clk 0:02:55]}  N4d5 {[%clk 0:02:50]} 12. Re1 {[%clk 0:02:54]}  Bf6 {[%clk 0:02:28]} 13. Bd2 {[%clk 0:02:53]}  Be6 {[%clk 0:02:21]} 14. Rc1 {[%clk 0:02:52]}  c6 {[%clk 0:02:20]} 15. Ne4 {[%clk 0:02:52]}  Be7 {[%clk 0:02:11]} 16. Nc5 {[%clk 0:02:51]}  Bxc5 {[%clk 0:01:42]} 17. dxc5 {[%clk 0:02:52]}  Nd7 {[%clk 0:01:41]} 18. Nd3 {[%clk 0:02:36]}  Re8 {[%clk 0:01:18]} 19. Nf4 {[%clk 0:02:35]}  Nxf4 {[%clk 0:01:15]} 20. Bxf4 {[%clk 0:02:35]}  Nf6 {[%clk 0:00:46]} 21. Bd6 {[%clk 0:02:34]}  Bd5 {[%clk 0:00:41]} 22. Bxd5 {[%clk 0:02:29]}  Nxd5 {[%clk 0:00:27]} 23. Qd2 {[%clk 0:02:24]}  Qd7 {[%clk 0:00:25]} 24. b4 {[%clk 0:02:22]}  h6 {[%clk 0:00:25]} 25. b5 {[%clk 0:02:21]}  Rxe1+ {[%clk 0:00:20]} 26. Rxe1 {[%clk 0:02:21]}  Re8 {[%clk 0:00:21]} 27. Rb1 {[%clk 0:02:19]}  Qf5 {[%clk 0:00:18]} 28. Rd1 {[%clk 0:02:13]}  Re4 {[%clk 0:00:17]} 29. bxc6 {[%clk 0:02:12]}  bxc6 {[%clk 0:00:17]} 30. Re1 {[%clk 0:01:48]}  Qe6 {[%clk 0:00:16]} 31. Rb1 {[%clk 0:01:44]}  Re2 {[%clk 0:00:10]} 32. Rb8+ {[%clk 0:01:40]}  Kh7 {[%clk 0:00:11]} 33. Qd3+ {[%clk 0:01:40]}  f5 {[%clk 0:00:07]} 34. Rb7 {[%clk 0:01:37]}  Re1+ {[%clk 0:00:04]} 35. Kg2 {[%clk 0:01:37]}  a5 {[%clk 0:00:03]} 36. Qd4 {[%clk 0:01:31]}  Qe4+ {[%clk 0:00:03]} 37. Qxe4 {[%clk 0:01:31]}  Rxe4 {[%clk 0:00:03]} 38. Bf8 {[%clk 0:01:20]}  Kg8 {[%clk 0:00:03]} 39. Bxg7 {[%clk 0:01:19]}  Rb4 {[%clk 0:00:03]} 40. Bxh6 {[%clk 0:01:19]}  Rxb7 {[%clk 0:00:02]} 41. Bd2 {[%clk 0:01:18]}  Rb2 {[%clk 0:00:03]} 42. Bxa5 {[%clk 0:01:18]}  Rxa2 {[%clk 0:00:03]} 43. Bc7 {[%clk 0:01:19]}  Rc2 {[%clk 0:00:04]} 44. Bd6 {[%clk 0:01:18]}  Nb4 {[%clk 0:00:04]} 45. Kf3 {[%clk 0:01:18]}  Nd3 {[%clk 0:00:04]} 46. h4 {[%clk 0:01:18]}  Nxc5 {[%clk 0:00:05]} 47. Kf4 {[%clk 0:01:17]}  Ne4 {[%clk 0:00:05]} 48. Be5 {[%clk 0:01:16]}  Rxf2+ {[%clk 0:00:05]} 49. Ke3 {[%clk 0:01:16]}  Rg2 {[%clk 0:00:04]} 50. Kf3 {[%clk 0:01:15]}  Rf2+ {[%clk 0:00:04]} 51. Ke3 {[%clk 0:01:15]}  c5 {[%clk 0:00:05]} 52. g4 {[%clk 0:01:15]}  Rg2 {[%clk 0:00:03]} 53. gxf5 {[%clk 0:01:14]}  Ng3 {[%clk 0:00:04]} 54. Kf3 {[%clk 0:01:14]}  Rg1 {[%clk 0:00:04]} 55. Bxg3 {[%clk 0:01:13]}  c4 {[%clk 0:00:02]} 56. Be5 {[%clk 0:01:12]}  Rh1 {[%clk 0:00:02]} 57. Bf6 {[%clk 0:01:12]}  Kf7 {[%clk 0:00:02]} 58. Be5 {[%clk 0:01:11]}  Rxh4 {[%clk 0:00:01]} 59. Ke3 {[%clk 0:01:12]}  Rh3+ {[%clk 0:00:01]} 60. Kd2 {[%clk 0:01:10]}  Rd3+ {[%clk 0:00:01]} 61. Kc2 {[%clk 0:01:10]}  Rd5 {[%clk 0:00:02]} 62. Bh2 {[%clk 0:01:03]}  Rxf5 {[%clk 0:00:02]} 63. Kc3 {[%clk 0:01:03]}  Rc5 {[%clk 0:00:02]} 64. Kd4 {[%clk 0:01:03]}  Rc8 {[%clk 0:00:02]} 65. Bf4 {[%clk 0:01:02]}  c3 {[%clk 0:00:02]} 66. Kd3 {[%clk 0:00:59]}  c2 {[%clk 0:00:03]} 67. Bc1 {[%clk 0:00:59]}  Ke6 {[%clk 0:00:03]} 68. Kd2 {[%clk 0:01:00]}  Kd5 {[%clk 0:00:03]} 69. Kd3 {[%clk 0:01:01]}  Ke5 {[%clk 0:00:04]} 70. Kd2 {[%clk 0:01:01]}  Ke4 {[%clk 0:00:04]} 71. Ke2 {[%clk 0:01:01]}  Kd4 {[%clk 0:00:05]} 72. Kd2 {[%clk 0:01:02]}  Ke4 {[%clk 0:00:05]} 73. Ke2 {[%clk 0:01:02]}  Rc6 {[%clk 0:00:05]} 74. Kd2 {[%clk 0:01:02]}  Kf3 {[%clk 0:00:06]} 75. Kd3 {[%clk 0:01:02]}  Kf2 {[%clk 0:00:05]} 76. Kd2 {[%clk 0:01:03]}  Kf3 {[%clk 0:00:05]} 77. Kd3 {[%clk 0:01:03]}  Kg4 {[%clk 0:00:06]} 78. Kd2 {[%clk 0:01:01]}  Kf5 {[%clk 0:00:06]} 79. Kd3 {[%clk 0:01:02]}  Ke6 {[%clk 0:00:07]} 80. Kd4 {[%clk 0:01:01]}  Kd7 {[%clk 0:00:07]} 81. Kd3 {[%clk 0:01:01]}  Kc7 {[%clk 0:00:08]} 82. Kd2 {[%clk 0:01:01]}  Kb6 {[%clk 0:00:08]} 83. Bb2 {[%clk 0:00:51]}  Kb5 {[%clk 0:00:09]} 84. Kc1 {[%clk 0:00:51]}  Kb4 {[%clk 0:00:09]} 85. Be5 {[%clk 0:00:48]}  Kb3 {[%clk 0:00:10]} 86. Bf4 {[%clk 0:00:48]}  Rc5 {[%clk 0:00:10]} 87. Be3 {[%clk 0:00:48]}  Rd5 {[%clk 0:00:10]} 88. Bd4 {[%clk 0:00:46]}  Rd6 {[%clk 0:00:08]} 89. Bc3 {[%clk 0:00:43]}  Rd1# {[%clk 0:00:08]} 0-1


[Site "https://www.chess.com"]